[Event "Titled Tuesday Blitz July 20 2021"]
[White "Nilsen, Tobias Lang"]
[Black "Woodward, Andy"]
[WhiteFideId "1521624"]
[BlackFideId "30953499"]
[WhiteElo "1975"]
[BlackElo "2137"]
[Result "1/2-1/2"]
[Round "01"]
[TimeControl "180+1"]
[Date "2021.07.21"]
[WhiteClock "0:00:34"]
[BlackClock "0:00:02"]

1. e4 {[%clk 0:02:57]}  c5 {[%clk 0:02:59]} 2. Nf3 {[%clk 0:02:57]}  d6 {[%clk 0:02:59]} 3. d4 {[%clk 0:02:57]}  cxd4 {[%clk 0:03:00]} 4. Qxd4 {[%clk 0:02:58]}  a6 {[%clk 0:02:59]} 5. c4 {[%clk 0:02:57]}  Nc6 {[%clk 0:02:58]} 6. Qd2 {[%clk 0:02:58]}  g6 {[%clk 0:02:58]} 7. b3 {[%clk 0:02:57]}  Bg7 {[%clk 0:02:57]} 8. Nc3 {[%clk 0:02:57]}  Nf6 {[%clk 0:02:57]} 9. Bb2 {[%clk 0:02:57]}  O-O {[%clk 0:02:57]} 10. h3 {[%clk 0:02:56]}  Bd7 {[%clk 0:02:55]} 11. Bd3 {[%clk 0:02:55]}  Rc8 {[%clk 0:02:53]} 12. O-O {[%clk 0:02:55]}  b6 {[%clk 0:02:42]} 13. Rfe1 {[%clk 0:02:47]}  h6 {[%clk 0:02:25]} 14. Rac1 {[%clk 0:02:46]}  Be6 {[%clk 0:02:23]} 15. Nd5 {[%clk 0:02:44]}  a5 {[%clk 0:02:05]} 16. Nxf6+ {[%clk 0:02:37]}  exf6 {[%clk 0:02:06]} 17. Nd4 {[%clk 0:02:31]}  Ne5 {[%clk 0:01:51]} 18. Be2 {[%clk 0:02:24]}  Qe7 {[%clk 0:01:43]} 19. f4 {[%clk 0:02:19]}  Nc6 {[%clk 0:01:37]} 20. Bf3 {[%clk 0:02:09]}  Nxd4 {[%clk 0:01:34]} 21. Bxd4 {[%clk 0:02:10]}  Qc7 {[%clk 0:01:29]} 22. Qf2 {[%clk 0:02:05]}  Rb8 {[%clk 0:01:05]} 23. Qg3 {[%clk 0:02:04]}  f5 {[%clk 0:01:02]} 24. Bxg7 {[%clk 0:01:39]}  Kxg7 {[%clk 0:01:01]} 25. exf5 {[%clk 0:01:40]}  Bxf5 {[%clk 0:01:02]} 26. Bg4 {[%clk 0:01:39]}  Bxg4 {[%clk 0:00:50]} 27. Qxg4 {[%clk 0:01:40]}  Rbe8 {[%clk 0:00:48]} 28. Kh1 {[%clk 0:01:23]}  Re7 {[%clk 0:00:32]} 29. f5 {[%clk 0:01:23]}  Re5 {[%clk 0:00:23]} 30. Rxe5 {[%clk 0:01:11]}  dxe5 {[%clk 0:00:23]} 31. Rd1 {[%clk 0:01:03]}  Qc6 {[%clk 0:00:23]} 32. Rd5 {[%clk 0:00:58]}  Qf6 {[%clk 0:00:20]} 33. fxg6 {[%clk 0:00:55]}  fxg6 {[%clk 0:00:21]} 34. Rd7+ {[%clk 0:00:54]}  Rf7 {[%clk 0:00:21]} 35. Rxf7+ {[%clk 0:00:52]}  Qxf7 {[%clk 0:00:22]} 36. Qe4 {[%clk 0:00:51]}  Qf1+ {[%clk 0:00:18]} 37. Kh2 {[%clk 0:00:51]}  Qf4+ {[%clk 0:00:16]} 38. Qxf4 {[%clk 0:00:52]}  exf4 {[%clk 0:00:17]} 39. Kg1 {[%clk 0:00:52]}  Kf6 {[%clk 0:00:17]} 40. Kf2 {[%clk 0:00:53]}  g5 {[%clk 0:00:16]} 41. Kf3 {[%clk 0:00:51]}  Kf5 {[%clk 0:00:16]} 42. a3 {[%clk 0:00:51]}  h5 {[%clk 0:00:16]} 43. b4 {[%clk 0:00:49]}  axb4 {[%clk 0:00:15]} 44. axb4 {[%clk 0:00:50]}  g4+ {[%clk 0:00:15]} 45. Ke2 {[%clk 0:00:39]}  Ke4 {[%clk 0:00:15]} 46. hxg4 {[%clk 0:00:32]}  hxg4 {[%clk 0:00:15]} 47. c5 {[%clk 0:00:33]}  bxc5 {[%clk 0:00:14]} 48. bxc5 {[%clk 0:00:34]}  Kd5 {[%clk 0:00:14]} 49. Kd3 {[%clk 0:00:33]}  Kxc5 {[%clk 0:00:04]} 50. Ke4 {[%clk 0:00:33]}  f3 {[%clk 0:00:03]} 51. gxf3 {[%clk 0:00:34]}  gxf3 {[%clk 0:00:02]} 52. Kxf3 {[%clk 0:00:34]} 1/2-1/2


[Site "https://www.chess.com"]

[Event "Titled Tuesday Blitz July 20 2021"]
[White "Onyshchuk, Volodymyr"]
[Black "Mazi, Leon"]
[WhiteFideId "14114038"]
[BlackFideId "14600315"]
[WhiteElo "2603"]
[BlackElo "2333"]
[Result "1-0"]
[Round "01"]
[TimeControl "180+1"]
[Date "2021.07.20"]
[WhiteClock "0:00:30"]
[BlackClock "0:00:15"]

1. e4 {[%clk 0:02:55]}  c5 {[%clk 0:02:55]} 2. Ne2 {[%clk 0:02:53]}  d6 {[%clk 0:02:54]} 3. g3 {[%clk 0:02:52]}  Nf6 {[%clk 0:02:52]} 4. Bg2 {[%clk 0:02:52]}  a6 {[%clk 0:02:52]} 5. c3 {[%clk 0:02:51]}  e5 {[%clk 0:02:42]} 6. d4 {[%clk 0:02:49]}  Nc6 {[%clk 0:02:42]} 7. d5 {[%clk 0:02:43]}  Ne7 {[%clk 0:02:38]} 8. c4 {[%clk 0:02:40]}  Ng6 {[%clk 0:02:31]} 9. Nec3 {[%clk 0:02:38]}  Be7 {[%clk 0:02:23]} 10. h4 {[%clk 0:02:32]}  h5 {[%clk 0:02:15]} 11. Bg5 {[%clk 0:02:28]}  Bd7 {[%clk 0:01:48]} 12. Bxf6 {[%clk 0:02:10]}  Bxf6 {[%clk 0:01:47]} 13. Bf3 {[%clk 0:02:10]}  b5 {[%clk 0:01:46]} 14. Qe2 {[%clk 0:02:07]}  bxc4 {[%clk 0:01:43]} 15. Na3 {[%clk 0:02:04]}  Rb8 {[%clk 0:01:38]} 16. Nxc4 {[%clk 0:01:56]}  Bb5 {[%clk 0:01:37]} 17. Nxb5 {[%clk 0:01:48]}  axb5 {[%clk 0:01:37]} 18. Ne3 {[%clk 0:01:49]}  Qa5+ {[%clk 0:01:32]} 19. Kf1 {[%clk 0:01:48]}  Ne7 {[%clk 0:01:22]} 20. Bxh5 {[%clk 0:01:47]}  c4 {[%clk 0:01:13]} 21. Kg2 {[%clk 0:01:45]}  Nc8 {[%clk 0:01:08]} 22. a4 {[%clk 0:01:41]}  bxa4 {[%clk 0:01:04]} 23. Nxc4 {[%clk 0:01:40]}  Qb4 {[%clk 0:01:00]} 24. Rhc1 {[%clk 0:01:31]}  Bd8 {[%clk 0:00:46]} 25. Bf3 {[%clk 0:01:10]}  Nb6 {[%clk 0:00:46]} 26. Ne3 {[%clk 0:01:10]}  Nd7 {[%clk 0:00:42]} 27. Nf5 {[%clk 0:00:54]}  g6 {[%clk 0:00:40]} 28. Rc4 {[%clk 0:00:53]}  Qb6 {[%clk 0:00:37]} 29. Rc6 {[%clk 0:00:53]}  Qxb2 {[%clk 0:00:33]} 30. Nxd6+ {[%clk 0:00:52]}  Kf8 {[%clk 0:00:30]} 31. Qxb2 {[%clk 0:00:48]}  Rxb2 {[%clk 0:00:29]} 32. Nc4 {[%clk 0:00:46]}  Rb4 {[%clk 0:00:22]} 33. Bd1 {[%clk 0:00:45]}  Nb8 {[%clk 0:00:17]} 34. Rc8 {[%clk 0:00:43]}  Ke7 {[%clk 0:00:17]} 35. Rxa4 {[%clk 0:00:40]}  Rb1 {[%clk 0:00:16]} 36. Ra7+ {[%clk 0:00:37]}  Kf6 {[%clk 0:00:16]} 37. Nd6 {[%clk 0:00:32]}  Rf8 {[%clk 0:00:15]} 38. Rxd8 {[%clk 0:00:30]} 1-0


[Site "https://www.chess.com"]

[Event "Titled Tuesday Blitz July 20 2021"]
[White "Pein, Jonathan"]
[Black "Batsuren, Dambasuren"]
[WhiteFideId "417092"]
[BlackFideId "4902920"]
[WhiteElo "2167"]
[BlackElo "2371"]
[Result "1-0"]
[Round "01"]
[TimeControl "180+1"]
[Date "2021.07.21"]
[WhiteClock "0:00:07"]
[BlackClock "0:00:56"]

1. e4 {[%clk 0:02:57]}  c6 {[%clk 0:03:00]} 2. d4 {[%clk 0:02:51]}  d5 {[%clk 0:03:01]} 3. e5 {[%clk 0:02:47]}  Bf5 {[%clk 0:03:00]} 4. h4 {[%clk 0:02:46]}  h5 {[%clk 0:03:00]} 5. c4 {[%clk 0:02:45]}  e6 {[%clk 0:03:01]} 6. Nc3 {[%clk 0:02:44]}  Ne7 {[%clk 0:03:01]} 7. Bd3 {[%clk 0:02:44]}  Qb6 {[%clk 0:02:50]} 8. c5 {[%clk 0:02:42]}  Qc7 {[%clk 0:02:42]} 9. Bg5 {[%clk 0:02:34]}  Bxd3 {[%clk 0:02:37]} 10. Qxd3 {[%clk 0:02:35]}  Nf5 {[%clk 0:02:37]} 11. Nge2 {[%clk 0:02:24]}  b6 {[%clk 0:02:37]} 12. cxb6 {[%clk 0:02:15]}  Qxb6 {[%clk 0:02:37]} 13. O-O {[%clk 0:02:09]}  Nd7 {[%clk 0:02:37]} 14. Rfc1 {[%clk 0:02:04]}  f6 {[%clk 0:02:35]} 15. Bf4 {[%clk 0:02:00]}  fxe5 {[%clk 0:02:32]} 16. dxe5 {[%clk 0:02:00]}  Nc5 {[%clk 0:02:25]} 17. Qh3 {[%clk 0:01:53]}  d4 {[%clk 0:02:12]} 18. Nxd4 {[%clk 0:01:13]}  Nxd4 {[%clk 0:02:10]} 19. Be3 {[%clk 0:01:13]}  Nf5 {[%clk 0:02:09]} 20. Na4 {[%clk 0:01:10]}  Nxa4 {[%clk 0:02:01]} 21. Bxb6 {[%clk 0:01:10]}  Nxb6 {[%clk 0:02:02]} 22. Rxc6 {[%clk 0:01:09]}  Kf7 {[%clk 0:02:02]} 23. Qb3 {[%clk 0:00:41]}  Nd5 {[%clk 0:01:52]} 24. Qb7+ {[%clk 0:00:36]}  Be7 {[%clk 0:01:52]} 25. Rxe6 {[%clk 0:00:28]}  Kxe6 {[%clk 0:01:42]} 26. Qc6+ {[%clk 0:00:28]}  Kxe5 {[%clk 0:01:36]} 27. Re1+ {[%clk 0:00:20]}  Nfe3 {[%clk 0:01:36]} 28. fxe3 {[%clk 0:00:14]}  Rac8 {[%clk 0:01:36]} 29. Qg6 {[%clk 0:00:13]}  Bf6 {[%clk 0:01:30]} 30. e4 {[%clk 0:00:13]}  Ne7 {[%clk 0:01:29]} 31. Qg3+ {[%clk 0:00:13]}  Ke6 {[%clk 0:01:29]} 32. e5 {[%clk 0:00:13]}  Bxh4 {[%clk 0:01:20]} 33. Qxh4 {[%clk 0:00:12]}  Rc2 {[%clk 0:01:21]} 34. Qh3+ {[%clk 0:00:11]}  Kf7 {[%clk 0:01:07]} 35. Qb3+ {[%clk 0:00:11]}  Kg6 {[%clk 0:01:03]} 36. Qxc2+ {[%clk 0:00:11]}  Kh6 {[%clk 0:01:04]} 37. Qd2+ {[%clk 0:00:11]}  Kh7 {[%clk 0:01:03]} 38. Qd6 {[%clk 0:00:10]}  Nf5 {[%clk 0:01:03]} 39. Qd3 {[%clk 0:00:10]}  g6 {[%clk 0:01:03]} 40. e6 {[%clk 0:00:10]}  Re8 {[%clk 0:01:04]} 41. e7 {[%clk 0:00:10]}  Kg7 {[%clk 0:01:04]} 42. Qd7 {[%clk 0:00:09]}  Kf7 {[%clk 0:01:04]} 43. Qxa7 {[%clk 0:00:09]}  Nxe7 {[%clk 0:01:02]} 44. a4 {[%clk 0:00:09]}  Kf6 {[%clk 0:01:01]} 45. a5 {[%clk 0:00:08]}  Nc6 {[%clk 0:01:00]} 46. Qf2+ {[%clk 0:00:07]}  Kg5 {[%clk 0:00:56]} 47. Rxe8 {[%clk 0:00:07]} 1-0


[Site "https://www.chess.com"]

[Event "Titled Tuesday Blitz July 20 2021"]
[White "Pichot, Alan"]
[Black "Pacheco Lugo, Alejandro Jose"]
[WhiteFideId "110973"]
[BlackFideId "3903745"]
[WhiteElo "2622"]
[BlackElo "2125"]
[Result "1-0"]
[Round "01"]
[TimeControl "180+1"]
[Date "2021.07.20"]
[WhiteClock "0:02:26"]
[BlackClock "0:01:25"]

1. c4 {[%clk 0:03:00]}  Nf6 {[%clk 0:02:59]} 2. g3 {[%clk 0:03:01]}  e6 {[%clk 0:02:58]} 3. Bg2 {[%clk 0:03:01]}  d5 {[%clk 0:02:52]} 4. Nf3 {[%clk 0:03:02]}  Be7 {[%clk 0:02:52]} 5. O-O {[%clk 0:03:03]}  O-O {[%clk 0:02:52]} 6. d4 {[%clk 0:03:03]}  dxc4 {[%clk 0:02:52]} 7. Ne5 {[%clk 0:03:04]}  Nc6 {[%clk 0:02:51]} 8. Nxc6 {[%clk 0:03:04]}  bxc6 {[%clk 0:02:52]} 9. Na3 {[%clk 0:03:04]}  Bxa3 {[%clk 0:02:51]} 10. bxa3 {[%clk 0:03:05]}  Ba6 {[%clk 0:02:51]} 11. Qd2 {[%clk 0:03:06]}  Rb8 {[%clk 0:02:52]} 12. Qa5 {[%clk 0:03:05]}  Qc8 {[%clk 0:02:52]} 13. a4 {[%clk 0:03:05]}  Rd8 {[%clk 0:02:52]} 14. Rd1 {[%clk 0:03:05]}  Nd5 {[%clk 0:02:45]} 15. Ba3 {[%clk 0:03:01]}  Rb6 {[%clk 0:02:23]} 16. Rac1 {[%clk 0:02:58]}  Qb7 {[%clk 0:02:21]} 17. e4 {[%clk 0:02:47]}  Nb4 {[%clk 0:02:17]} 18. Bxb4 {[%clk 0:02:35]}  Rxb4 {[%clk 0:02:18]} 19. d5 {[%clk 0:02:36]}  cxd5 {[%clk 0:02:01]} 20. exd5 {[%clk 0:02:36]}  Qb6 {[%clk 0:01:49]} 21. dxe6 {[%clk 0:02:30]}  Rxd1+ {[%clk 0:01:48]} 22. Rxd1 {[%clk 0:02:31]}  fxe6 {[%clk 0:01:40]} 23. Rd8+ {[%clk 0:02:25]}  Kf7 {[%clk 0:01:39]} 24. Qh5+ {[%clk 0:02:26]}  Ke7 {[%clk 0:01:28]} 25. Qe8+ {[%clk 0:02:26]}  Kf6 {[%clk 0:01:28]} 26. Qf8+ {[%clk 0:02:27]}  Kg6 {[%clk 0:01:25]} 27. Be4+ {[%clk 0:02:27]}  Kh6 {[%clk 0:01:25]} 28. Qf4+ {[%clk 0:02:26]} 1-0


[Site "https://www.chess.com"]

[Event "Titled Tuesday Blitz July 20 2021"]
[White "Plotnikov, Pavel"]
[Black "Ahmadzada, Ahmad"]
[WhiteFideId "4170342"]
[BlackFideId "13413007"]
[WhiteElo "2418"]
[BlackElo "2778"]
[Result "0-1"]
[Round "01"]
[TimeControl "180+1"]
[Date "2021.07.21"]
[WhiteClock "0:00:14"]
[BlackClock "0:00:05"]

1. e4 {[%clk 0:02:53]}  d5 {[%clk 0:02:59]} 2. exd5 {[%clk 0:02:51]}  Qxd5 {[%clk 0:03:00]} 3. Nc3 {[%clk 0:02:50]}  Qd8 {[%clk 0:03:00]} 4. d4 {[%clk 0:02:50]}  Nf6 {[%clk 0:03:00]} 5. Nf3 {[%clk 0:02:49]}  Bg4 {[%clk 0:03:01]} 6. Bc4 {[%clk 0:02:49]}  e6 {[%clk 0:02:59]} 7. O-O {[%clk 0:02:49]}  c6 {[%clk 0:02:57]} 8. Be2 {[%clk 0:02:48]}  Nbd7 {[%clk 0:02:55]} 9. Be3 {[%clk 0:02:48]}  Be7 {[%clk 0:02:54]} 10. h3 {[%clk 0:02:47]}  Bxf3 {[%clk 0:02:51]} 11. Bxf3 {[%clk 0:02:47]}  O-O {[%clk 0:02:52]} 12. Ne2 {[%clk 0:02:47]}  Nb6 {[%clk 0:02:46]} 13. b3 {[%clk 0:02:46]}  Qc7 {[%clk 0:02:44]} 14. c4 {[%clk 0:02:45]}  Rad8 {[%clk 0:02:37]} 15. Qc2 {[%clk 0:02:42]}  Nc8 {[%clk 0:02:30]} 16. Rfd1 {[%clk 0:02:37]}  Nd6 {[%clk 0:02:26]} 17. Ng3 {[%clk 0:02:26]}  Qc8 {[%clk 0:02:18]} 18. Rd2 {[%clk 0:02:25]}  Rfe8 {[%clk 0:02:15]} 19. Rad1 {[%clk 0:02:25]}  g6 {[%clk 0:02:06]} 20. Bf4 {[%clk 0:02:06]}  Nd7 {[%clk 0:01:49]} 21. Qc3 {[%clk 0:01:42]}  Bf8 {[%clk 0:01:42]} 22. Qb2 {[%clk 0:01:38]}  Nf5 {[%clk 0:01:34]} 23. Nxf5 {[%clk 0:01:38]}  exf5 {[%clk 0:01:35]} 24. d5 {[%clk 0:01:35]}  Bg7 {[%clk 0:01:33]} 25. Qa3 {[%clk 0:01:35]}  Ne5 {[%clk 0:01:30]} 26. Bxe5 {[%clk 0:01:35]}  Rxe5 {[%clk 0:01:27]} 27. Qxa7 {[%clk 0:01:20]}  Rde8 {[%clk 0:01:18]} 28. dxc6 {[%clk 0:01:15]}  bxc6 {[%clk 0:01:18]} 29. Qb6 {[%clk 0:01:13]}  Bf8 {[%clk 0:00:24]} 30. Qxc6 {[%clk 0:00:48]}  Qb8 {[%clk 0:00:24]} 31. g3 {[%clk 0:00:44]}  f4 {[%clk 0:00:24]} 32. g4 {[%clk 0:00:40]}  Bc5 {[%clk 0:00:20]} 33. Kg2 {[%clk 0:00:36]}  Kg7 {[%clk 0:00:19]} 34. Rd7 {[%clk 0:00:34]}  R8e7 {[%clk 0:00:15]} 35. Rxe7 {[%clk 0:00:32]}  Bxe7 {[%clk 0:00:15]} 36. Rd7 {[%clk 0:00:32]}  Qb4 {[%clk 0:00:13]} 37. Qb7 {[%clk 0:00:27]}  Qe1 {[%clk 0:00:11]} 38. c5 {[%clk 0:00:28]}  Kh6 {[%clk 0:00:08]} 39. c6 {[%clk 0:00:25]}  Bc5 {[%clk 0:00:07]} 40. g5+ {[%clk 0:00:15]}  Rxg5+ {[%clk 0:00:06]} 41. Kh2 {[%clk 0:00:14]}  Qg1# {[%clk 0:00:05]} 0-1


[Site "https://www.chess.com"]

[Event "Titled Tuesday Blitz July 20 2021"]
[White "Preotu, Razvan"]
[Black "Yirik, Volkan"]
[WhiteFideId "2613280"]
[BlackFideId "6300782"]
[WhiteElo "2778"]
[BlackElo "2418"]
[Result "1-0"]
[Round "01"]
[TimeControl "180+1"]
[Date "2021.07.21"]
[WhiteClock "0:00:19"]
[BlackClock "0:00:35"]

1. e4 {[%clk 0:03:00]}  g6 {[%clk 0:02:54]} 2. d4 {[%clk 0:03:00]}  Bg7 {[%clk 0:02:55]} 3. Nc3 {[%clk 0:03:00]}  c5 {[%clk 0:02:56]} 4. d5 {[%clk 0:02:39]}  d6 {[%clk 0:02:55]} 5. Nf3 {[%clk 0:02:35]}  Bg4 {[%clk 0:02:54]} 6. Bd3 {[%clk 0:01:52]}  a6 {[%clk 0:02:50]} 7. a4 {[%clk 0:01:52]}  Nd7 {[%clk 0:02:48]} 8. h3 {[%clk 0:01:50]}  Bxf3 {[%clk 0:02:48]} 9. Qxf3 {[%clk 0:01:50]}  Ngf6 {[%clk 0:02:48]} 10. Bf4 {[%clk 0:01:25]}  O-O {[%clk 0:02:48]} 11. O-O {[%clk 0:01:24]}  Ne8 {[%clk 0:02:48]} 12. a5 {[%clk 0:01:23]}  Nc7 {[%clk 0:02:47]} 13. Qg3 {[%clk 0:01:17]}  Rb8 {[%clk 0:02:46]} 14. Nd1 {[%clk 0:01:11]}  b5 {[%clk 0:02:46]} 15. axb6 {[%clk 0:01:11]}  Rxb6 {[%clk 0:02:46]} 16. Ra2 {[%clk 0:01:11]}  Nb5 {[%clk 0:02:45]} 17. c3 {[%clk 0:01:09]}  Ne5 {[%clk 0:02:44]} 18. Be2 {[%clk 0:01:08]}  Qb8 {[%clk 0:02:41]} 19. Bg5 {[%clk 0:01:05]}  Re8 {[%clk 0:02:31]} 20. f4 {[%clk 0:01:05]}  Nd7 {[%clk 0:02:31]} 21. f5 {[%clk 0:01:05]}  Ne5 {[%clk 0:02:31]} 22. h4 {[%clk 0:01:03]}  Kh8 {[%clk 0:02:07]} 23. h5 {[%clk 0:01:02]}  f6 {[%clk 0:02:01]} 24. Bd2 {[%clk 0:01:01]}  g5 {[%clk 0:02:00]} 25. Ne3 {[%clk 0:01:00]}  h6 {[%clk 0:01:57]} 26. Rfa1 {[%clk 0:00:58]}  Qb7 {[%clk 0:01:57]} 27. Qe1 {[%clk 0:00:52]}  Rb8 {[%clk 0:01:56]} 28. Qd1 {[%clk 0:00:51]}  Nc7 {[%clk 0:01:55]} 29. Bc1 {[%clk 0:00:48]}  Ra8 {[%clk 0:01:45]} 30. Qc2 {[%clk 0:00:47]}  Nb5 {[%clk 0:01:39]} 31. Ra5 {[%clk 0:00:47]}  Nc7 {[%clk 0:01:38]} 32. Nd1 {[%clk 0:00:46]}  Bf8 {[%clk 0:01:31]} 33. Be3 {[%clk 0:00:47]}  Rb3 {[%clk 0:01:28]} 34. Bf2 {[%clk 0:00:42]}  Rb6 {[%clk 0:01:20]} 35. Bg3 {[%clk 0:00:42]}  Nf7 {[%clk 0:01:15]} 36. Bc4 {[%clk 0:00:42]}  Nb5 {[%clk 0:01:14]} 37. b3 {[%clk 0:00:41]}  Ne5 {[%clk 0:01:12]} 38. Bxe5 {[%clk 0:00:41]}  dxe5 {[%clk 0:01:13]} 39. Bxb5 {[%clk 0:00:38]}  Rxb5 {[%clk 0:01:12]} 40. Ne3 {[%clk 0:00:34]}  Rxb3 {[%clk 0:01:09]} 41. Rxc5 {[%clk 0:00:30]}  e6 {[%clk 0:01:06]} 42. Rc6 {[%clk 0:00:27]}  Rb2 {[%clk 0:01:01]} 43. Qd3 {[%clk 0:00:26]}  exd5 {[%clk 0:01:00]} 44. exd5 {[%clk 0:00:24]}  Qa7 {[%clk 0:00:56]} 45. Rcxa6 {[%clk 0:00:21]}  Bc5 {[%clk 0:00:33]} 46. Rxa7 {[%clk 0:00:20]}  Rxa7 {[%clk 0:00:34]} 47. Rxa7 {[%clk 0:00:20]}  Bxa7 {[%clk 0:00:35]} 48. Kh2 {[%clk 0:00:19]} 1-0


[Site "https://www.chess.com"]

[Event "Titled Tuesday Blitz July 20 2021"]
[White "Pulpan, Jakub"]
[Black "Vagman, Roy"]
[WhiteFideId "302759"]
[BlackFideId "2828995"]
[WhiteElo "2471"]
[BlackElo "1782"]
[Result "1-0"]
[Round "01"]
[TimeControl "180+1"]
[Date "2021.07.21"]
[WhiteClock "0:01:45"]
[BlackClock "0:00:13"]

1. e4 {[%clk 0:02:48]}  c5 {[%clk 0:02:58]} 2. Nf3 {[%clk 0:02:46]}  d6 {[%clk 0:02:57]} 3. d4 {[%clk 0:02:44]}  cxd4 {[%clk 0:02:55]} 4. Bc4 {[%clk 0:02:44]}  Nf6 {[%clk 0:02:49]} 5. Nxd4 {[%clk 0:02:43]}  Nc6 {[%clk 0:02:25]} 6. f3 {[%clk 0:02:40]}  e5 {[%clk 0:02:12]} 7. Nb3 {[%clk 0:02:38]}  Be7 {[%clk 0:01:45]} 8. O-O {[%clk 0:02:38]}  O-O {[%clk 0:01:45]} 9. Be3 {[%clk 0:02:39]}  Be6 {[%clk 0:01:44]} 10. Bxe6 {[%clk 0:02:35]}  fxe6 {[%clk 0:01:44]} 11. c4 {[%clk 0:02:35]}  b6 {[%clk 0:01:41]} 12. Nc3 {[%clk 0:02:36]}  Nd7 {[%clk 0:01:37]} 13. Rc1 {[%clk 0:02:24]}  Nc5 {[%clk 0:01:30]} 14. Qd2 {[%clk 0:02:22]}  Nxb3 {[%clk 0:01:20]} 15. axb3 {[%clk 0:02:22]}  Bf6 {[%clk 0:01:19]} 16. Rfd1 {[%clk 0:02:22]}  Nd4 {[%clk 0:01:18]} 17. Rb1 {[%clk 0:02:13]}  a5 {[%clk 0:01:01]} 18. Nb5 {[%clk 0:02:09]}  Nxb5 {[%clk 0:00:56]} 19. cxb5 {[%clk 0:02:09]}  Be7 {[%clk 0:00:56]} 20. Rbc1 {[%clk 0:02:10]}  Rc8 {[%clk 0:00:52]} 21. Rc6 {[%clk 0:02:10]}  Rxc6 {[%clk 0:00:52]} 22. bxc6 {[%clk 0:02:11]}  Qc7 {[%clk 0:00:52]} 23. Rc1 {[%clk 0:02:12]}  Rc8 {[%clk 0:00:49]} 24. b4 {[%clk 0:02:12]}  axb4 {[%clk 0:00:45]} 25. Qxb4 {[%clk 0:02:13]}  d5 {[%clk 0:00:45]} 26. Qxb6 {[%clk 0:02:10]}  d4 {[%clk 0:00:41]} 27. Qxc7 {[%clk 0:02:10]}  Rxc7 {[%clk 0:00:42]} 28. Bd2 {[%clk 0:02:10]}  Kf7 {[%clk 0:00:39]} 29. Ba5 {[%clk 0:02:07]}  Rc8 {[%clk 0:00:39]} 30. b4 {[%clk 0:01:55]}  Bg5 {[%clk 0:00:38]} 31. Rc4 {[%clk 0:01:44]}  d3 {[%clk 0:00:38]} 32. Kf1 {[%clk 0:01:45]}  Ke7 {[%clk 0:00:36]} 33. b5 {[%clk 0:01:45]}  Ra8 {[%clk 0:00:33]} 34. Bb4+ {[%clk 0:01:40]}  Kd8 {[%clk 0:00:32]} 35. b6 {[%clk 0:01:40]}  Be3 {[%clk 0:00:27]} 36. b7 {[%clk 0:01:37]}  Ra1+ {[%clk 0:00:27]} 37. Be1 {[%clk 0:01:38]}  Kc7 {[%clk 0:00:24]} 38. Rb4 {[%clk 0:01:32]}  Ba7 {[%clk 0:00:21]} 39. Rb2 {[%clk 0:01:33]}  Kxc6 {[%clk 0:00:19]} 40. g4 {[%clk 0:01:29]}  Kc7 {[%clk 0:00:16]} 41. Rd2 {[%clk 0:01:28]}  Ra3 {[%clk 0:00:14]} 42. Bg3 {[%clk 0:01:28]}  Kxb7 {[%clk 0:00:14]} 43. Bxe5 {[%clk 0:01:28]}  Rb3 {[%clk 0:00:14]} 44. Bxg7 {[%clk 0:01:28]}  Be3 {[%clk 0:00:14]} 45. Rb2 {[%clk 0:01:28]}  Rxb2 {[%clk 0:00:14]} 46. Bxb2 {[%clk 0:01:29]}  Bf4 {[%clk 0:00:15]} 47. h4 {[%clk 0:01:29]}  Kc6 {[%clk 0:00:15]} 48. Ke1 {[%clk 0:01:28]}  Kb5 {[%clk 0:00:15]} 49. Kd1 {[%clk 0:01:28]}  Kc4 {[%clk 0:00:16]} 50. Bc1 {[%clk 0:01:26]}  Bg3 {[%clk 0:00:14]} 51. h5 {[%clk 0:01:27]}  e5 {[%clk 0:00:15]} 52. g5 {[%clk 0:01:28]}  Bh4 {[%clk 0:00:13]} 53. g6 {[%clk 0:01:28]}  hxg6 {[%clk 0:00:12]} 54. hxg6 {[%clk 0:01:29]}  Bf6 {[%clk 0:00:11]} 55. Bh6 {[%clk 0:01:29]}  Kd4 {[%clk 0:00:08]} 56. Kd2 {[%clk 0:01:30]}  Bh8 {[%clk 0:00:04]} 57. g7 {[%clk 0:01:30]}  Bxg7 {[%clk 0:00:04]} 58. Bxg7 {[%clk 0:01:31]}  Kc4 {[%clk 0:00:03]} 59. Bxe5 {[%clk 0:01:32]}  Kb4 {[%clk 0:00:02]} 60. Kxd3 {[%clk 0:01:33]}  Kc5 {[%clk 0:00:03]} 61. Bh2 {[%clk 0:01:33]}  Kc6 {[%clk 0:00:04]} 62. f4 {[%clk 0:01:34]}  Kd7 {[%clk 0:00:05]} 63. e5 {[%clk 0:01:35]}  Ke6 {[%clk 0:00:06]} 64. Ke4 {[%clk 0:01:35]}  Kf7 {[%clk 0:00:07]} 65. f5 {[%clk 0:01:36]}  Kg7 {[%clk 0:00:07]} 66. Bg1 {[%clk 0:01:37]}  Kf7 {[%clk 0:00:08]} 67. e6+ {[%clk 0:01:38]}  Kf8 {[%clk 0:00:09]} 68. Kf4 {[%clk 0:01:39]}  Ke7 {[%clk 0:00:10]} 69. Ke5 {[%clk 0:01:40]}  Ke8 {[%clk 0:00:10]} 70. f6 {[%clk 0:01:41]}  Kf8 {[%clk 0:00:11]} 71. f7 {[%clk 0:01:42]}  Ke7 {[%clk 0:00:11]} 72. Kf5 {[%clk 0:01:42]}  Kd6 {[%clk 0:00:12]} 73. f8=Q+ {[%clk 0:01:42]}  Kc6 {[%clk 0:00:11]} 74. Qc5+ {[%clk 0:01:43]}  Kb7 {[%clk 0:00:12]} 75. Qb6+ {[%clk 0:01:43]}  Kc8 {[%clk 0:00:12]} 76. Qa7 {[%clk 0:01:44]}  Kd8 {[%clk 0:00:13]} 77. Qd7# {[%clk 0:01:45]} 1-0


[Site "https://www.chess.com"]

[Event "Titled Tuesday Blitz July 20 2021"]
[White "Quintiliano Pinto, Renato R."]
[Black "Manukian, Artak"]
[WhiteFideId "2117568"]
[BlackFideId "13301373"]
[WhiteElo "2439"]
[BlackElo "2365"]
[Result "1-0"]
[Round "01"]
[TimeControl "180+1"]
[Date "2021.07.21"]
[WhiteClock "0:00:59"]
[BlackClock "0:01:40"]

1. d4 {[%clk 0:03:00]}  Nf6 {[%clk 0:02:54]} 2. c4 {[%clk 0:03:00]}  b6 {[%clk 0:02:54]} 3. Nc3 {[%clk 0:02:58]}  Bb7 {[%clk 0:02:54]} 4. a3 {[%clk 0:02:52]}  d6 {[%clk 0:02:52]} 5. Nf3 {[%clk 0:02:51]}  Nbd7 {[%clk 0:02:53]} 6. Qc2 {[%clk 0:02:51]}  e5 {[%clk 0:02:53]} 7. d5 {[%clk 0:02:49]}  a5 {[%clk 0:02:52]} 8. Rb1 {[%clk 0:02:45]}  Be7 {[%clk 0:02:49]} 9. e4 {[%clk 0:02:43]}  O-O {[%clk 0:02:49]} 10. b4 {[%clk 0:02:34]}  axb4 {[%clk 0:02:49]} 11. axb4 {[%clk 0:02:34]}  Nh5 {[%clk 0:02:48]} 12. g3 {[%clk 0:02:29]}  g6 {[%clk 0:02:45]} 13. Be2 {[%clk 0:02:28]}  f5 {[%clk 0:02:43]} 14. exf5 {[%clk 0:02:22]}  gxf5 {[%clk 0:02:41]} 15. h4 {[%clk 0:02:16]}  f4 {[%clk 0:02:33]} 16. Ng5 {[%clk 0:02:11]}  Nhf6 {[%clk 0:02:21]} 17. Ne6 {[%clk 0:02:08]}  Qe8 {[%clk 0:02:20]} 18. Nxc7 {[%clk 0:02:04]}  Qf7 {[%clk 0:02:17]} 19. Nxa8 {[%clk 0:02:04]}  fxg3 {[%clk 0:02:14]} 20. fxg3 {[%clk 0:01:44]}  Bxa8 {[%clk 0:02:04]} 21. O-O {[%clk 0:01:40]}  Qg7 {[%clk 0:02:04]} 22. Qd3 {[%clk 0:01:29]}  e4 {[%clk 0:01:57]} 23. Nxe4 {[%clk 0:01:27]}  Ne5 {[%clk 0:01:57]} 24. Nxf6+ {[%clk 0:01:22]}  Bxf6 {[%clk 0:01:57]} 25. Qe3 {[%clk 0:01:21]}  Kh8 {[%clk 0:01:52]} 26. Rf4 {[%clk 0:01:12]}  Ng6 {[%clk 0:01:48]} 27. Rxf6 {[%clk 0:01:00]}  Qxf6 {[%clk 0:01:44]} 28. Bb2 {[%clk 0:00:59]}  Ne5 {[%clk 0:01:44]} 29. Rf1 {[%clk 0:00:57]}  Qg7 {[%clk 0:01:41]} 30. Rxf8+ {[%clk 0:00:56]}  Qxf8 {[%clk 0:01:41]} 31. Bxe5+ {[%clk 0:00:57]}  dxe5 {[%clk 0:01:42]} 32. Qxe5+ {[%clk 0:00:58]}  Kg8 {[%clk 0:01:42]} 33. Bg4 {[%clk 0:00:58]}  Qxb4 {[%clk 0:01:40]} 34. Be6+ {[%clk 0:00:58]}  Kf8 {[%clk 0:01:40]} 35. Qf6+ {[%clk 0:00:58]}  Ke8 {[%clk 0:01:40]} 36. Qf7+ {[%clk 0:00:59]} 1-0


[Site "https://www.chess.com"]